Cogmind - Beta 14 @@@ ROGUE MODE // 2025.03.24 @ 22:20:19 Player: McSaucyNugget Result: Destroyed by AG-19356 with Assembled Focal Cannon Performance ------------- Evolutions (1) 500 Regions Visited (5) 1000 Robots Destroyed (38) 190 Value Destroyed (712) 712 Prototype IDs (0) 0 Alien Tech Used (0) 0 Bonus (0) 0 TOTAL SCORE: 2402 Bonus ------- None Cogmind --------- Core Integrity 0/400 Matter 285/300 Energy 95/100 System Corruption 0% Temperature Cool (6) Movement Flying (34) Location -7/Deep Caves Parts ------- > --- POWER (1) -------- (None) > --- PROPULSION (3) --- Flight Unit VTOL Module > --- UTILITY (3) ------ Improved Targeting Computer Hacking Suite > --- WEAPON (2) ------- (None) > --- INVENTORY (5) ---- Advanced Targeting Computer Advanced ECM Suite Bomb Factory No. 2 CR-A16's Pointy Stick Peak State ------------ > --- POWER ------------ Improved Deuterium Engine > --- PROPULSION ------- Wheel Wheel Wheel > --- UTILITY ---------- Large Storage Unit Improved Targeting Computer Hacking Suite > --- WEAPON ----------- Gauss Rifle Rocket Launcher > --- INVENTORY -------- Micro Nuclear Core Wheel Flight Unit VTOL Module Experimental Signal Interpreter 0b10 Decoder Chip [Skirmisher] Advanced Targeting Computer Advanced ECM Suite Makeshift Hacking Suite Authchip [R/Combat] Bomb Factory No. 2 Heavy Assault Rifle RU-N14's Throwing Claymores CR-A16's Pointy Stick [Rating: 25] Favorites ----------- Power Improved Deuterium Engine Engine Improved Deuterium Engine Propulsion Wheel Leg Aluminum Leg Wheel Wheel Flight Unit Flight Unit Utility Large Storage Unit Device Improved Terrain Scanner Storage Large Storage Unit Processor Improved Targeting Computer Hackware Hacking Suite Protection Light Armor Plating Weapon Heavy Assault Rifle Energy Gun EM Pulse Gun Ballistic Gun Heavy Assault Rifle Ballistic Cannon Light Cannon Launcher Rocket Launcher Build | -11 -10 -9 -9 -7 -7 ------- Run | Yrd Mat Mat Min Zio Dee Slots Evolved 2 | . . 2 . . . Power . | . . . . . . Propulsion 1 | . . 1 . . . Utility 1 | . . 1 . . . Weapon . | . . . . . . Parts Attached 40 | 5 18 10 2 1 4 Power 6 | 1 3 1 1 . . Engine 6 | 1 3 1 1 . . Core . | . . . . . . Reactor . | . . . . . . Propulsion 9 | 2 3 1 . 1 2 Treads . | . . . . . . Leg 3 | 2 1 . . . . Wheel 4 | . 2 1 . 1 . Hover . | . . . . . . Flight 2 | . . . . . 2 Utility 8 | . 4 4 . . . Device 3 | . 2 1 . . . Storage 1 | . 1 . . . . Processor 2 | . 1 1 . . . Hackware 1 | . . 1 . . . Protection 1 | . . 1 . . . Artifact . | . . . . . . Weapon 17 | 2 8 4 1 . 2 Energy Gun 2 | 2 . . . . . Energy Cannon . | . . . . . . Ballistic Gun 9 | . 6 1 . . 2 Ballistic Cannon 2 | . . 2 . . . Launcher 4 | . 2 1 1 . . Special Weapon . | . . . . . . Impact Weapon . | . . . . . . Slashing Weapon . | . . . . . . Piercing Weapon . | . . . . . . Special Melee Weapon . | . . . . . . Unidentified Prototypes . | . . . . . . Parts Lost 5 | . . . . . 5 Power 1 | . . . . . 1 Propulsion 3 | . . . . . 3 Utility . | . . . . . . Weapon 1 | . . . . . 1 Highest Loss Streak 5 | . . . . . 5 To Critical Strikes . | . . . . . . Average Slot Usage (%) 97 | . 89 99 100 100 90 Engine 10 | . 11 10 11 11 9 Leg 3 | . 22 . . . . Wheel 27 | . 5 33 33 33 27 Device 2 | . 6 7 . . . Storage 9 | . 3 11 11 11 9 Processor 9 | . 10 3 11 11 11 Hackware 7 | . . . 11 11 11 Protection 1 | . . 9 . . . Energy Gun 1 | . 6 . . . . Ballistic Gun 10 | . 18 3 11 11 9 Ballistic Cannon 5 | . . 18 8 . . Launcher 5 | . 2 . 2 11 8 Peak Build Rating 25 | 5 11 15 20 23 25 Average Rating 15 | 4 7 12 15 21 20 On Entrance 12 | . 5 9 15 20 23 Naked Turns . | . . . . . . Heaviest Build 37 | 7 31 35 37 37 37 Greatest Support 30 | 20 20 30 30 30 30 Greatest Overweight (x) 3 | . 3 1 1 1 1 Average Overweight (x) . | . . . 1 1 . Largest Inventory Capacity 15 | 5 15 15 15 15 15 Average Capacity 13 | 5 7 15 15 15 13 Most Carried 15 | 4 10 14 15 15 15 Average Carried 11 | 1 5 11 13 14 13 Final Capacity 15 | 5 15 15 15 15 5 Final Carried 15 | 4 10 14 14 15 5 Class Distribution -------------------- 78% | Scavenger-Mutant 21% | Mutant Dominant Class ---------------- Mutant | -10/Materials Scavenger-Mutant | -9/Materials Scavenger-Mutant | -9/Mines Scavenger-Mutant | -7/Zion Scavenger-Mutant | -7/Deep Caves Resources | -11 -10 -9 -9 -7 -7 ----------- Run | Yrd Mat Mat Min Zio Dee Matter Collected 1089 | 250 390 354 85 10 . Remotely . | . . . . . . Salvage Created 1152 | 65 601 388 98 . . Parts 64 | 4 29 22 9 . . Haulers Intercepted 1 | . . 1 . . . Recyclers Shooed 7 | . 3 2 2 . . Parts Field Recycled . | . . . . . . Retrieved Matter . | . . . . . . Parts Self-Destructed 2 | . . . . 2 . Prevented . | . . . . . . Kills | -11 -10 -9 -9 -7 -7 ------- Run | Yrd Mat Mat Min Zio Dee Combat Hostiles Destroyed 21 | 1 11 8 1 . . Guns 6 | 1 5 . . . . Cannons 7 | . . 7 . . . AOE 8 | . 6 1 1 . . Classes Destroyed 10 | 2 3 4 1 . . Worker 5 | 1 3 1 . . . Builder 1 | . . . 1 . . Tunneler 3 | . 1 . 2 . . Hauler 1 | . . 1 . . . Recycler 5 | . 3 2 . . . Operator 1 | . . 1 . . . Watcher 1 | . . 1 . . . Swarmer 6 | . 3 3 . . . Grunt 14 | 1 8 4 1 . . Sentry 1 | . . 1 . . . Best Kill Streak 5 | 2 5 3 1 . . Combat Bots Only 5 | 1 5 2 1 . . Max Kills in Single Turn 3 | 1 3 2 1 . . Gunslinging . | . . . . . . Exploded 3 | . 3 1 1 . . Melee . | . . . . . . Uniques/NPCs Destroyed . | . . . . . . Combat | -11 -10 -9 -9 -7 -7 -------- Run | Yrd Mat Mat Min Zio Dee Hostile Shots Fired 133 | 4 37 32 . . 60 Missed 60 | 2 11 14 . . 33 Damage Taken 1432 | 21 309 203 19 . 880 Core 479 | 11 55 20 . . 393 Absorbed by Shields . | . . . . . . Core Remaining (%) 84 | 95 73 . . . . Volleys Fired 79 | 5 35 31 8 . . Largest 2 | 2 2 2 2 . . Hottest 80 | 80 70 70 58 . . Shots Fired 155 | 10 67 62 16 . . Gun 80 | 10 60 2 8 . . Cannon 66 | . . 59 7 . . Launcher 9 | . 7 1 1 . . Special . | . . . . . . Kinetic 126 | . 50 61 15 . . Thermal . | . . . . . . Explosive 9 | . 7 1 1 . . Electromagnetic 20 | 10 10 . . . . Robot Hit Streak 15 | 2 15 5 9 . . Robot Miss Streak 4 | 1 3 4 3 . . Penetration Max . | . . . . . . Secondary Targets 1 | . 1 . . . . Max Gunslinging Chain 1 | . 1 . . . . Shots Hit Robots 99 | 6 46 35 12 . . Core Hits 50 | 3 27 17 3 . . Critical Kills 2 | . 2 . . . . Critical Parts Destroyed . | . . . . . . Critical Strikes 4 | . 3 1 . . . Destroy 2 | . 2 . . . . Blast 1 | . . 1 . . . Corrupt 1 | . 1 . . . . Melee Attacks . | . . . . . . Impact . | . . . . . . Slashing . | . . . . . . Piercing . | . . . . . . Sneak Attacks . | . . . . . . Combat Hostiles . | . . . . . . Follow-up Attacks . | . . . . . . Damage Inflicted 2306 | 83 1227 682 314 . . Guns 829 | 83 625 32 89 . . Cannons 731 | . . 627 104 . . Explosions 707 | . 602 23 82 . . Melee . | . . . . . . Ramming 39 | . . . 39 . . Kinetic 1378 | . 526 659 193 . . Thermal 42 | . 42 . . . . Explosive 665 | . 560 23 82 . . Electromagnetic 182 | 83 99 . . . . Impact . | . . . . . . Slashing . | . . . . . . Piercing . | . . . . . . Highest Corruption . | . . . . . . Average Corruption . | . . . . . . Corruption Purged . | . . . . . . Corruption Blocked . | . . . . . . Overload Shots . | . . . . . . Overflow Damage 12 | . . 11 1 . . Projectiles 11 | . . 11 . . . Explosions . | . . . . . . Melee 1 | . . . 1 . . Knockbacks 8 | . . 7 1 . . Impact . | . . . . . . Kinetic 7 | . . 6 1 . . Secondary 1 | . . 1 . . . Self-Inflicted Damage 39 | . 20 . 19 . . Shots 1 | . 1 . . . . Rammed 2 | . . . 2 . . Targets Rammed 3 | . 1 . 2 . . Kicked 1 | . 1 . . . . Crushed . | . . . . . . Highest Temperature 93 | 66 34 93 . . 15 Average Temperature 25 | 30 16 27 . . 8 Received Heat Transfer 456 | 12 162 48 . . 234 Siege Activations . | . . . . . . Robots Corrupted 1 | . . . 1 . . Combat Hostiles . | . . . . . . Parts Fried 3 | . . . 3 . . Impact Corruptions 1 | . . . 1 . . Robots Melted . | . . . . . . Combat Hostiles . | . . . . . . Parts Melted . | . . . . . . Heat Transferred 50 | . 50 . . . . Parts Sabotaged . | . . . . . . Parts Stolen . | . . . . . . Parts Stripped . | . . . . . . Power Chain Reactions 1 | . 1 . . . . Alert | -11 -10 -9 -9 -7 -7 ------- Run | Yrd Mat Mat Min Zio Dee Peak Influence 383 | 25 383 367 119 . . Initial 109 | . 16 90 109 . . Average 157 | 3 191 236 82 . . Maximum Alert Level 1 | . 1 1 . . . Low Security (%) 66 | 100 59 31 100 . . Level 1 33 | . 40 68 . . . Level 2 . | . . . . . . Level 3 . | . . . . . . Level 4 . | . . . . . . Level 5 . | . . . . . . High Security . | . . . . . . Max Security . | . . . . . . Squads Dispatched 5 | . 1 3 1 . . Investigation 3 | . . 2 1 . . Extermination . | . . . . . . Reinforcement 2 | . 1 1 . . . Assault . | . . . . . . Garrison . | . . . . . . Intercept . | . . . . . . Searches Triggered . | . . . . . . Construction Impeded . | . . . . . . Haulers Reinforced . | . . . . . . Active Scanning Responses . | . . . . . . Cargo Convoy Interrupts . | . . . . . . Stealth | -11 -10 -9 -9 -7 -7 --------- Run | Yrd Mat Mat Min Zio Dee Distress Signals 3 | . 2 1 . . . Communications Jammed . | . . . . . . Distress Signals . | . . . . . . Times Spotted 44 | 1 20 14 2 . 7 Peak Tracking Total 9 | 1 5 3 2 . 9 Tactical Retreats 3 | . . 2 . . 1 Traps | -11 -10 -9 -9 -7 -7 ------- Run | Yrd Mat Mat Min Zio Dee Traps Triggered 1 | . . 1 . . . Indirectly . | . . . . . . Trap Hack Attempts . | . . . . . . Triggered . | . . . . . . Disarmed . | . . . . . . Reprogrammed . | . . . . . . Reused . | . . . . . . Traps Extracted . | . . . . . . Installed . | . . . . . . Triggered . | . . . . . . Machines | -11 -10 -9 -9 -7 -7 ---------- Run | Yrd Mat Mat Min Zio Dee Machines Disabled 3 | . 2 1 . . . Max in Single Turn 2 | . 2 1 . . . Machines Repaired . | . . . . . . Machines Dismantled . | . . . . . . Machines Sabotaged . | . . . . . . Overloaded Fab Kills . | . . . . . . Hacking | -11 -10 -9 -9 -7 -7 --------- Run | Yrd Mat Mat Min Zio Dee Machines Accessed 5 | . 1 3 1 . . Terminals 4 | . 1 3 . . . Fabricators . | . . . . . . Repair Stations . | . . . . . . Recycling Units . | . . . . . . Scanalyzers . | . . . . . . Garrison Access . | . . . . . . Total Hacks 12 | . 3 8 1 . . Successful 3 | . 1 1 1 . . Failed 9 | . 2 7 . . . Catastrophic . | . . . . . . Database Lockouts . | . . . . . . Manual 4 | . . . . 4 . Terminals 11 | . 3 8 . . . Fabricators . | . . . . . . Repair Stations . | . . . . . . Recycling Units . | . . . . . . Scanalyzers . | . . . . . . Garrison Access . | . . . . . . Terminal Hacks 3 | . 1 1 1 . . Open Door 1 | . . . 1 . . Alert Level 1 | . 1 . . . . Zone Layout 1 | . . 1 . . . Fabricator Hacks . | . . . . . . Repair Station Hacks . | . . . . . . Recycling Unit Hacks . | . . . . . . Scanalyzer . | . . . . . . Garrison Access Hacks . | . . . . . . Unauthorized Hacks . | . . . . . . Terminals . | . . . . . . Fabricators . | . . . . . . Repair Stations . | . . . . . . Recycling Units . | . . . . . . Scanalyzers . | . . . . . . Garrison Access . | . . . . . . Data Cores Recovered . | . . . . . . Used . | . . . . . . Hacking Detections 4 | . 1 3 . . . Full Trace Events 3 | . 1 2 . . . Feedback Events . | . . . . . . Feedback Blocked . | . . . . . . Robot Schematics Acquired 3 | . . . . 3 . Robots Built . | . . . . . . Authchips . | . . . . . . Time . | . . . . . . Total Robot Build Rating . | . . . . . . Part Schematics Acquired 15 | . . . . 15 . Parts Built . | . . . . . . Authchips . | . . . . . . Time . | . . . . . . Total Part Build Rating . | . . . . . . Parts Repaired . | . . . . . . Time . | . . . . . . Parts Recycled . | . . . . . . Recycled Matter . | . . . . . . Retrieved Matter . | . . . . . . Retrieved Components . | . . . . . . Parts Scanalyzed . | . . . . . . Part Schematics Acquired . | . . . . . . Parts Damaged . | . . . . . . Bothacking | -11 -10 -9 -9 -7 -7 ------------ Run | Yrd Mat Mat Min Zio Dee Used RIF Installer . | . . . . . . Robots Hacked . | . . . . . . Non-combat . | . . . . . . Combat . | . . . . . . Robot Hacks Applied . | . . . . . . Relay Couplers Released . | . . . . . . Fabnet Peak Effective % . | . . . . . . Robots Rewired . | . . . . . . Allies Hacked . | . . . . . . Hacks Repelled . | . . . . . . Allies | -11 -10 -9 -9 -7 -7 -------- Run | Yrd Mat Mat Min Zio Dee Total Allies . | . . . . . . Largest Group . | . . . . . . Highest-Rated Group . | . . . . . . Highest-Rated Ally . | . . . . . . Total Orders . | . . . . . . Ally Attacks . | . . . . . . Total Damage . | . . . . . . Kills . | . . . . . . Allies Corrupted . | . . . . . . Allies Melted . | . . . . . . Intel | -11 -10 -9 -9 -7 -7 ------- Run | Yrd Mat Mat Min Zio Dee Robot Analysis Total . | . . . . . . Derelict Logs Recovered 2 | . . . 1 1 . Drone Launches . | . . . . . . Drone Recoveries . | . . . . . . Exploration | -11 -10 -9 -9 -7 -7 ------------- Run | Yrd Mat Mat Min Zio Dee Turns Passed 3289 | 139 554 607 607 1125 257 Spaces Moved 3034 | 110 355 477 602 1159 331 Core 27 | 27 . . . . . Treads . | . . . . . . Legs 330 | 83 247 . . . . Wheels 2570 | . 108 477 602 1159 224 Hover . | . . . . . . Flight 107 | . . . . . 107 Fastest Speed 34 | 50 95 80 95 95 34 Average Speed 95 | 102 114 94 95 95 75 Slowest Speed 190 | 120 190 95 95 95 95 Overloaded Moves . | . . . . . . Propulsion Burnouts . | . . . . . . Robots Hopped . | . . . . . . Cave-ins Triggered . | . . . . . . Exploration Rate (%) 53 | 6 48 43 82 81 58 Regions Visited 5 Branch Regions 3 Pre-discovered Areas 2 | . . . . 2 . Known Exits Taken 1 | . 1 . . . . Unknown Exits Taken 4 | 1 . 1 1 1 . Scrap Searched 3 | . . . 1 2 . Spaces Dug 5 | . 5 . . . . Terrain Destroyed 41 | . 28 4 9 . . Melee . | . . . . . . Projectile . | . . . . . . AOE 41 | . 28 4 9 . . Terrain Rammed . | . . . . . . Walls Destroyed . | . . . . . . Machines Disabled . | . . . . . . Actions | -11 -10 -9 -9 -7 -7 --------- Run | Yrd Mat Mat Min Zio Dee Total 3278 | 123 437 571 622 1187 338 Wait 41 | . . 34 . 7 . Move 3029 | 109 354 476 601 1158 331 Hop . | . . . . . . Pick Up 42 | 4 11 13 4 10 . Fast Attach 12 | 5 5 1 . 1 . Attach 5 | . . 3 . . 2 Detach 4 | . 3 1 . . . Swap 23 | . 13 6 2 . 2 Drop 39 | . 15 6 5 11 2 Fire 79 | 5 35 31 8 . . Melee . | . . . . . . Ram 2 | . . . 2 . . Kick 1 | . 1 . . . . Crush . | . . . . . . Escape Stasis . | . . . . . . Rewire 1 | . . . . . 1 Trap . | . . . . . . Miscellaneous . | . . . . . . Route ------- -11/Scrapyard -10/Materials (discovered 2 exits: *Mat / *Min) -9/Materials (discovered 2 exits: [*Mat] / *Min) -9/Mines (discovered 2 exits: [*Mat] / *Zio) -7/Zion -7/Deep Caves History --------- Turn | Location | Event 2 | -11/Scrapyard | Met Revision 17 111 | -11/Scrapyard | Discovered new exit (range 8) 140 | -11/Scrapyard | Entered Materials 327 | -10/Materials | Discovered new exit (range 12) 331 | -10/Materials | Build established: Mutant 493 | -10/Materials | Discovered new exit (range 15) 623 | -10/Materials | Identified exit to Materials 660 | -10/Materials | Identified exit to Mines 694 | -10/Materials | Entered another Materials area 694 | -9/Materials | Evolved 2 slots: Propulsion x1, Utility x1 995 | -9/Materials | Build established: Scavenger-Mutant 1144 | -9/Materials | Discovered new exit (range 10) 1263 | -9/Materials | Discovered new exit (range 16) 1301 | -9/Materials | Entered Mines 1325 | -9/Mines | A Derelict revealed a hidden shortcut to a safe place 1597 | -9/Mines | Received a Rocket Launcher from a helpful Derelict 1645 | -9/Mines | Discovered new exit (range 15) 1791 | -9/Mines | Met a Derelict shopkeep closing up shop 1908 | -9/Mines | Entered Zion 2050 | -7/Zion | Acquired unknown access codes intercepted by a Zionite 2077 | -7/Zion | Found Prototype Special Weapon 2081 | -7/Zion | Found Prototype Special Weapon 2170 | -7/Zion | Found Prototype Processor 2208 | -7/Zion | Learned location of 1 exit from Factory 2314 | -7/Zion | Found Prototype Device 2454 | -7/Zion | Opened final containment barrier to the Deep Caves 2526 | -7/Zion | Found CR-A16's Pointy Stick 2552 | -7/Zion | Given the Hacking Drone Bay 2633 | -7/Zion | Learned location of Warlord (-5) 2695 | -7/Zion | Found GAL Module 2773 | -7/Zion | Learned location of Data Miner (-6) 3030 | -7/Zion | Discovered new exit (range 3) 3030 | -7/Zion | Saw the warning signs outside the Deep Caves entrance 3033 | -7/Zion | Entered Deep Caves 3231 | -7/Deep Caves | Attacked by Z-Imprinter 3239 | -7/Deep Caves | Z-Facility disabled 3253 | -7/Deep Caves | Core integrity fell below 50% 3282 | -7/Deep Caves | Lost 5 parts (1p3n1w) 3286 | -7/Deep Caves | Spotted AG-19356 3287 | -7/Deep Caves | Core integrity fell below 20% 3290 | -7/Deep Caves | Destroyed by AG-19356 with Assembled Focal Cannon Last Messages --------------- 03030_ The room is plastered with warning signs of various forms. [Achievement: Tourist] [Achievement: Signs Are For Wimps] [Achievement: Adventurer] LOCATION=UNKNOWN GOAL=ESCAPE 03133_ Attempting to rewire Surveybot 24. 03133_ Surveybot 24 is broken beyond repair. 03217_ NEW_ZION: Z-Facility proximity alert. Z-Imprinter: GET AWAY FROM HERE! I've worked too hard for our future just to have you ruin everything! 03239_ Z-Facility disabled. 03242_ Rocket Launcher destroyed. 03246_ Wheel destroyed. 03250_ Imp. Deuterium Engine destroyed. 03250_ Dropped Hvy. Assault Rifle. 03251_ Wheel destroyed. 03253_ Dropped Lrg. Storage Unit. 03287_ AG-19356: "DSI9AT1D G8OHIBQ29FWG 26R186 QD12WHW8W33 TDK1 81FTS" [Achievement: First Step to Greatness] Map ----- +----------------------------------------------------+ | ???????????????????????????????????????????? | | ???????????????????????????????????????????? | | ???????????????????????????????????????????? | | ???????????????????????????????????????????? | | ???????????????????????????????????????????? | | ???????????????????????????????????????????? | | ???????????????????????????????????????????? | | ???????????????????????????????????????????? | | ???????????????????????????????????????????? | | ???????????????????????????????????????????? | | ????????????????? ?????????????????????? | | ??????????????? ???????????????????? | | ???????????? ????????????????????? | | ?????????? ????????????????????? | | ?????????" | ????????????????????? | | ?????????" ????????????????????? | | ?????????" #??##????????????????? | | ????????"" ! #?? #????????????????? | | ????????# h ### ###??????????????? | | ????????# # ???????????????? | | ????????# ! l ##???????????????? | | ????????# b ###?????????????? | | ????????# ! #?????????????? | | ????????# ! #???????????????? | | ????????# g ! ! ##??????????????? | | ????????# = @ #??????????????? | | ????????# ! #????"""???????? | | ????????# = = g #???? ""???????? | | ????????# ! #???? ???????? | | ????????"" #??## #???????? | | ?????????" * * b #?## #???????? | | ?????????" b M #?# #???????? | | ?????????" == = ### #???????? | | ?????????" * * ## #???????? | | ????????# * [ [ ## #???????? | | ????????" h* ;# #???????? | | ????????" * a## #????????? | | ????????" [ [ I #????????? | | ????????""" #????????? | | ????????? ##??###### | | ????????"" M ### ##?# | | ????????? #?# #?# | | ?????????" ##?# ### #### | | ?????????? # # #??# #??? | | ?????????? #### ## ## ##??## ######??? | | ??????????? ##???# ?# ####????####???????? | | ???????????? ??????##?# ???????????????????? | | ???????????????????????#???????????????????? | | | | | +----------------------------------------------------+ Best States ------------- Heat Dissipation 35 Energy Generation 16 Energy Capacity 290 Matter Stores 300 Matter Capacity 300 Sight Range 16 Terrain Scan Range 16 Terrain Scan Density 10 Armor Coverage 150 Evasion (%) 63 Targeting Accuracy 6 Offensive Hacking 10 Authchip Count 2 Item Schematics ----------------- Arm. Huge Wheel | -7/Zion | Archive Imp. Heavy Armor Plating | -7/Zion | Archive Recalibrator | -7/Zion | Archive Adv. Signal Interpreter | -7/Zion | Archive Core Analyzer | -7/Zion | Archive Imp. Proton Missile Launcher | -7/Zion | Archive Plasma Cannon | -7/Zion | Archive Imp. Kinecellerator | -7/Zion | Archive Adv. Shield Generator | -7/Zion | Archive Proton Missile Launcher | -7/Zion | Archive Imp. Actuator Array | -7/Zion | Archive Med. Treads | -7/Zion | Archive Fission Core | -7/Zion | Archive Imp. Hardlight Generator | -7/Zion | Archive Lyr. Light Armor Plating | -7/Zion | Archive Robot Schematics ------------------ T-07 Excavator | -7/Zion | Archive R-06 Scavenger | -7/Zion | Archive M-28 Smith | -7/Zion | Archive Fabricated ------------ Nothing Alien Tech Used ----------------- None Achievements -------------- Adventurer Crack Shot First Step to Greatness Hey, That's Mine! Loot Pinata One Hack Too Far Power Corrupts Robot Respite Signs Are For Wimps Tourist Uninvited Guest Challenges ------------ None Game ------ Seed GreatAmuletInverter Manual? 0 Play Time 00:39:10 Cumulative 0.6 hours Start 2025.03.24 @ 21:42:40 End 2025.03.24 @ 22:20:19 Sessions 2 Manual Loads 0 Difficulty Rogue Special Mode None Game No. 1 Rogue 1 Adventurer 0 Explorer 0 Win Type - Total 0 Types 0/0/0/0/0/0/0/0/0 Lore% 2 Gallery% 2 Achievement% 4 Wizard Run 0 Options --------- Layout 0 ASCII 0 Keyboard 1 Movement Vi Keybinds 0 Fullscreen 2 Font 18/SmallcapsGlow Map View 76x50 Zoom Use 0% Tactical HUD 1 Map Filters NONE Filters NONE Steam 1 RUN: 3372d7db-6b71-4544-848b-80dc0bf003c2